[Event "Titled Tuesday Blitz November 29 Late 2022"]
[White "Marcolino, Daniel Mattos"]
[Black "Rios Escobar, Adan"]
[WhiteFideId "2106841"]
[BlackFideId "3403645"]
[WhiteElo "2138"]
[BlackElo "2298"]
[Result "1-0"]
[Round "11"]
[TimeControl "180+1"]
[Date "2022.11.30"]
[WhiteClock "0:00:04"]
[BlackClock "0:00:01"]

1. d4 {[%clk 0:03:00]}  Nf6 {[%clk 0:02:53]} 2. Nf3 {[%clk 0:03:00]}  g6 {[%clk 0:02:53]} 3. g3 {[%clk 0:03:00]}  Bg7 {[%clk 0:02:53]} 4. Bg2 {[%clk 0:03:01]}  O-O {[%clk 0:02:54]} 5. O-O {[%clk 0:03:01]}  c5 {[%clk 0:02:55]} 6. dxc5 {[%clk 0:03:00]}  Na6 {[%clk 0:02:54]} 7. Be3 {[%clk 0:02:59]}  Qc7 {[%clk 0:02:48]} 8. Nc3 {[%clk 0:02:58]}  Ng4 {[%clk 0:02:41]} 9. Bd4 {[%clk 0:02:57]}  e5 {[%clk 0:02:40]} 10. Nd5 {[%clk 0:02:37]}  Qd8 {[%clk 0:02:37]} 11. Bc3 {[%clk 0:02:28]}  Re8 {[%clk 0:02:09]} 12. h3 {[%clk 0:02:23]}  Nh6 {[%clk 0:02:10]} 13. b4 {[%clk 0:01:49]}  b6 {[%clk 0:01:45]} 14. cxb6 {[%clk 0:01:36]}  axb6 {[%clk 0:01:46]} 15. Qd2 {[%clk 0:01:26]}  Nf5 {[%clk 0:01:41]} 16. Ng5 {[%clk 0:01:20]}  Ra7 {[%clk 0:01:32]} 17. Ne4 {[%clk 0:01:13]}  d6 {[%clk 0:01:20]} 18. Rfd1 {[%clk 0:00:51]}  Nc7 {[%clk 0:01:03]} 19. Nxb6 {[%clk 0:00:40]}  Nb5 {[%clk 0:01:03]} 20. Nxc8 {[%clk 0:00:39]}  Qxc8 {[%clk 0:00:58]} 21. Bb2 {[%clk 0:00:36]}  Rc7 {[%clk 0:00:47]} 22. c3 {[%clk 0:00:32]}  Rd8 {[%clk 0:00:33]} 23. a4 {[%clk 0:00:32]}  Na7 {[%clk 0:00:28]} 24. b5 {[%clk 0:00:15]}  d5 {[%clk 0:00:26]} 25. Ng5 {[%clk 0:00:14]}  Rcd7 {[%clk 0:00:22]} 26. b6 {[%clk 0:00:12]}  Nc6 {[%clk 0:00:20]} 27. a5 {[%clk 0:00:13]}  d4 {[%clk 0:00:17]} 28. cxd4 {[%clk 0:00:13]}  Ncxd4 {[%clk 0:00:17]} 29. Bxd4 {[%clk 0:00:13]}  Nxd4 {[%clk 0:00:18]} 30. Qa2 {[%clk 0:00:11]}  Qa6 {[%clk 0:00:16]} 31. e3 {[%clk 0:00:11]}  Ne2+ {[%clk 0:00:13]} 32. Kh2 {[%clk 0:00:09]}  h6 {[%clk 0:00:05]} 33. Rxd7 {[%clk 0:00:08]}  Rxd7 {[%clk 0:00:06]} 34. Ne4 {[%clk 0:00:07]}  Bf8 {[%clk 0:00:03]} 35. Re1 {[%clk 0:00:05]}  Nc3 {[%clk 0:00:01]} 36. Nxc3 {[%clk 0:00:04]}  Kg7 {[%clk 0:00:01]} 37. Ne4 {[%clk 0:00:04]}  f6 {[%clk 0:00:01]} 38. Rc1 {[%clk 0:00:04]} 1-0


[Site "https://www.chess.com"]

[Event "Titled Tuesday Blitz November 29 Late 2022"]
[White "Nakamura, Hikaru"]
[Black "Fedoseev, Vladimir"]
[WhiteFideId "2016192"]
[BlackFideId "24130737"]
[WhiteElo "2909"]
[BlackElo "2726"]
[Result "0-1"]
[Round "11"]
[TimeControl "180+1"]
[Date "2022.11.30"]
[WhiteClock "0:00:09"]
[BlackClock "0:00:15"]

1. Nf3 {[%clk 0:03:00]}  d5 {[%clk 0:02:57]} 2. e3 {[%clk 0:03:00]}  c5 {[%clk 0:02:57]} 3. b3 {[%clk 0:02:58]}  a6 {[%clk 0:02:57]} 4. Bb2 {[%clk 0:02:58]}  Nc6 {[%clk 0:02:58]} 5. d4 {[%clk 0:02:58]}  Nf6 {[%clk 0:02:58]} 6. Nbd2 {[%clk 0:02:58]}  Bg4 {[%clk 0:02:31]} 7. h3 {[%clk 0:02:54]}  Bh5 {[%clk 0:02:28]} 8. a3 {[%clk 0:02:49]}  cxd4 {[%clk 0:02:26]} 9. exd4 {[%clk 0:02:47]}  e6 {[%clk 0:02:24]} 10. Bd3 {[%clk 0:02:47]}  Bd6 {[%clk 0:02:21]} 11. O-O {[%clk 0:02:47]}  Qc7 {[%clk 0:02:16]} 12. Re1 {[%clk 0:02:47]}  O-O {[%clk 0:02:15]} 13. c4 {[%clk 0:02:43]}  Bf4 {[%clk 0:02:12]} 14. Qc2 {[%clk 0:02:40]}  Rad8 {[%clk 0:02:03]} 15. cxd5 {[%clk 0:02:04]}  Rxd5 {[%clk 0:01:54]} 16. Ne5 {[%clk 0:01:43]}  Nxe5 {[%clk 0:01:19]} 17. Qxc7 {[%clk 0:01:43]}  Nf3+ {[%clk 0:01:14]} 18. Nxf3 {[%clk 0:01:42]}  Bxc7 {[%clk 0:01:14]} 19. Ne5 {[%clk 0:01:43]}  Bb6 {[%clk 0:01:03]} 20. Bc4 {[%clk 0:01:37]}  Rd6 {[%clk 0:01:01]} 21. g4 {[%clk 0:00:59]}  Bg6 {[%clk 0:00:59]} 22. h4 {[%clk 0:00:56]}  Bxd4 {[%clk 0:00:36]} 23. Bxd4 {[%clk 0:00:56]}  Rxd4 {[%clk 0:00:36]} 24. h5 {[%clk 0:00:56]}  Be4 {[%clk 0:00:31]} 25. g5 {[%clk 0:00:44]}  Nxh5 {[%clk 0:00:26]} 26. Rac1 {[%clk 0:00:36]}  b5 {[%clk 0:00:23]} 27. Bf1 {[%clk 0:00:35]}  Bd5 {[%clk 0:00:23]} 28. b4 {[%clk 0:00:30]}  Rh4 {[%clk 0:00:21]} 29. Bg2 {[%clk 0:00:30]}  Bxg2 {[%clk 0:00:19]} 30. Kxg2 {[%clk 0:00:31]}  Nf4+ {[%clk 0:00:20]} 31. Kg3 {[%clk 0:00:31]}  f6 {[%clk 0:00:16]} 32. Nd7 {[%clk 0:00:07]}  fxg5 {[%clk 0:00:15]} 33. Nxf8 {[%clk 0:00:07]}  Kxf8 {[%clk 0:00:15]} 34. Rh1 {[%clk 0:00:07]}  Ne2+ {[%clk 0:00:14]} 35. Kf3 {[%clk 0:00:08]}  Nxc1 {[%clk 0:00:15]} 36. Rxc1 {[%clk 0:00:09]}  Rc4 {[%clk 0:00:15]} 0-1


[Site "https://www.chess.com"]

[Event "Titled Tuesday Blitz November 29 Late 2022"]
[White "Necromon"]
[Black "Aldokhin, Ivan"]
[BlackFideId "24115720"]
[WhiteElo "2485"]
[BlackElo "2313"]
[Result "0-1"]
[Round "11"]
[TimeControl "180+1"]
[Date "2022.11.30"]
[WhiteClock "0:01:08"]
[BlackClock "0:00:20"]

1. Nf3 {[%clk 0:03:00]}  Nf6 {[%clk 0:02:59]} 2. g3 {[%clk 0:03:01]}  g6 {[%clk 0:02:59]} 3. Bg2 {[%clk 0:03:01]}  Bg7 {[%clk 0:03:00]} 4. O-O {[%clk 0:03:02]}  O-O {[%clk 0:03:00]} 5. b3 {[%clk 0:03:03]}  d6 {[%clk 0:02:54]} 6. Bb2 {[%clk 0:03:02]}  c5 {[%clk 0:02:54]} 7. c4 {[%clk 0:02:58]}  Nc6 {[%clk 0:02:55]} 8. d4 {[%clk 0:02:57]}  cxd4 {[%clk 0:02:54]} 9. Nxd4 {[%clk 0:02:58]}  Nxd4 {[%clk 0:02:54]} 10. Qxd4 {[%clk 0:02:56]}  Ne8 {[%clk 0:02:40]} 11. Qd2 {[%clk 0:02:55]}  Bxb2 {[%clk 0:02:40]} 12. Qxb2 {[%clk 0:02:56]}  Nf6 {[%clk 0:02:34]} 13. Nc3 {[%clk 0:02:54]}  Qb6 {[%clk 0:02:33]} 14. Rad1 {[%clk 0:02:37]}  Bd7 {[%clk 0:02:32]} 15. Rfe1 {[%clk 0:02:24]}  a5 {[%clk 0:02:28]} 16. e4 {[%clk 0:02:22]}  Bc6 {[%clk 0:02:15]} 17. e5 {[%clk 0:02:21]}  dxe5 {[%clk 0:02:09]} 18. Rxe5 {[%clk 0:02:13]}  Bxg2 {[%clk 0:02:07]} 19. Kxg2 {[%clk 0:02:12]}  e6 {[%clk 0:01:55]} 20. Nb5 {[%clk 0:02:09]}  Rfd8 {[%clk 0:01:51]} 21. Ree1 {[%clk 0:02:06]}  Ng4 {[%clk 0:01:01]} 22. Qe2 {[%clk 0:01:54]}  h5 {[%clk 0:00:53]} 23. Qf3 {[%clk 0:01:46]}  a4 {[%clk 0:00:47]} 24. h3 {[%clk 0:01:40]}  Nh6 {[%clk 0:00:36]} 25. Qf4 {[%clk 0:01:30]}  Nf5 {[%clk 0:00:34]} 26. g4 {[%clk 0:01:29]}  Qc6+ {[%clk 0:00:27]} 27. Kh2 {[%clk 0:01:19]}  Nh4 {[%clk 0:00:23]} 28. Rxd8+ {[%clk 0:01:08]}  Rxd8 {[%clk 0:00:21]} 29. Qf6 {[%clk 0:01:08]}  Qg2# {[%clk 0:00:20]} 0-1


[Site "https://www.chess.com"]

[Event "Titled Tuesday Blitz November 29 Late 2022"]
[White "Preotu, Razvan"]
[Black "Nugumanov, Bakhtiyar"]
[WhiteFideId "2613280"]
[BlackFideId "13701797"]
[WhiteElo "2407"]
[BlackElo "2287"]
[Result "1/2-1/2"]
[Round "11"]
[TimeControl "180+1"]
[Date "2022.11.30"]
[WhiteClock "0:00:03"]
[BlackClock "0:00:13"]

1. e4 {[%clk 0:03:00]}  c6 {[%clk 0:02:53]} 2. Nc3 {[%clk 0:03:00]}  d5 {[%clk 0:02:53]} 3. Nf3 {[%clk 0:03:01]}  Nf6 {[%clk 0:02:53]} 4. e5 {[%clk 0:03:01]}  Ne4 {[%clk 0:02:53]} 5. Ne2 {[%clk 0:03:01]}  Qb6 {[%clk 0:02:52]} 6. d4 {[%clk 0:03:01]}  e6 {[%clk 0:02:51]} 7. Ng3 {[%clk 0:03:01]}  c5 {[%clk 0:02:49]} 8. Bd3 {[%clk 0:03:00]}  Nxg3 {[%clk 0:02:49]} 9. fxg3 {[%clk 0:03:00]}  Nc6 {[%clk 0:02:49]} 10. O-O {[%clk 0:02:53]}  cxd4 {[%clk 0:02:42]} 11. a3 {[%clk 0:02:47]}  Be7 {[%clk 0:02:20]} 12. Qe2 {[%clk 0:02:37]}  h6 {[%clk 0:02:12]} 13. b4 {[%clk 0:02:21]}  a6 {[%clk 0:02:05]} 14. Bd2 {[%clk 0:02:10]}  Bd7 {[%clk 0:02:00]} 15. Rab1 {[%clk 0:02:10]}  Na7 {[%clk 0:01:59]} 16. Qf2 {[%clk 0:02:06]}  Nb5 {[%clk 0:01:55]} 17. a4 {[%clk 0:02:05]}  Na3 {[%clk 0:01:36]} 18. a5 {[%clk 0:01:57]}  Qc7 {[%clk 0:01:31]} 19. Nxd4 {[%clk 0:01:54]}  O-O {[%clk 0:01:24]} 20. Rbe1 {[%clk 0:01:54]}  Nc4 {[%clk 0:01:19]} 21. g4 {[%clk 0:01:01]}  Nxd2 {[%clk 0:01:03]} 22. Qxd2 {[%clk 0:01:02]}  Bg5 {[%clk 0:01:03]} 23. Qf2 {[%clk 0:01:00]}  f6 {[%clk 0:00:47]} 24. Qg3 {[%clk 0:00:37]}  fxe5 {[%clk 0:00:43]} 25. Rxe5 {[%clk 0:00:27]}  Rxf1+ {[%clk 0:00:42]} 26. Bxf1 {[%clk 0:00:27]}  Bf6 {[%clk 0:00:39]} 27. Nf3 {[%clk 0:00:22]}  Bxe5 {[%clk 0:00:37]} 28. Nxe5 {[%clk 0:00:23]}  Bb5 {[%clk 0:00:37]} 29. Bxb5 {[%clk 0:00:14]}  axb5 {[%clk 0:00:38]} 30. c3 {[%clk 0:00:13]}  Rf8 {[%clk 0:00:37]} 31. h3 {[%clk 0:00:12]}  Rc8 {[%clk 0:00:26]} 32. Qf4 {[%clk 0:00:11]}  Rf8 {[%clk 0:00:24]} 33. Qd4 {[%clk 0:00:11]}  Qd8 {[%clk 0:00:21]} 34. Nf3 {[%clk 0:00:08]}  Qf6 {[%clk 0:00:21]} 35. Qb6 {[%clk 0:00:08]}  Qxc3 {[%clk 0:00:19]} 36. Qxe6+ {[%clk 0:00:09]}  Kh8 {[%clk 0:00:19]} 37. Qxd5 {[%clk 0:00:09]}  Qc1+ {[%clk 0:00:18]} 38. Kh2 {[%clk 0:00:08]}  Qf4+ {[%clk 0:00:19]} 39. Kh1 {[%clk 0:00:08]}  Qxb4 {[%clk 0:00:19]} 40. g5 {[%clk 0:00:02]}  Qb1+ {[%clk 0:00:17]} 41. Kh2 {[%clk 0:00:02]}  Qf5 {[%clk 0:00:17]} 42. Qxb7 {[%clk 0:00:02]}  Qf4+ {[%clk 0:00:17]} 43. Kh1 {[%clk 0:00:02]}  Qc1+ {[%clk 0:00:17]} 44. Kh2 {[%clk 0:00:02]}  Qf4+ {[%clk 0:00:17]} 45. Kh1 {[%clk 0:00:02]}  hxg5 {[%clk 0:00:15]} 46. Qxb5 {[%clk 0:00:02]}  Qc1+ {[%clk 0:00:15]} 47. Kh2 {[%clk 0:00:02]}  Qf4+ {[%clk 0:00:15]} 48. Kh1 {[%clk 0:00:03]}  Qc1+ {[%clk 0:00:15]} 49. Kh2 {[%clk 0:00:03]}  Qc7+ {[%clk 0:00:13]} 50. Kh1 {[%clk 0:00:03]}  Qc1+ {[%clk 0:00:13]} 1/2-1/2


[Site "https://www.chess.com"]

[Event "Titled Tuesday Blitz November 29 Late 2022"]
[White "Prohorov, Olexandr"]
[Black "Adewumi, Tanitoluwa"]
[WhiteFideId "14105578"]
[BlackFideId "30966396"]
[WhiteElo "1993"]
[BlackElo "2534"]
[Result "1-0"]
[Round "11"]
[TimeControl "180+1"]
[Date "2022.11.30"]
[WhiteClock "0:00:49"]
[BlackClock "0:00:01"]

1. d4 {[%clk 0:02:57]}  Nf6 {[%clk 0:02:54]} 2. Nf3 {[%clk 0:02:55]}  e6 {[%clk 0:02:47]} 3. Bg5 {[%clk 0:02:56]}  h6 {[%clk 0:02:43]} 4. Bxf6 {[%clk 0:02:56]}  Qxf6 {[%clk 0:02:44]} 5. e4 {[%clk 0:02:56]}  d6 {[%clk 0:02:33]} 6. Nc3 {[%clk 0:02:52]}  g6 {[%clk 0:02:24]} 7. Qd2 {[%clk 0:02:48]}  Bg7 {[%clk 0:02:23]} 8. Be2 {[%clk 0:02:44]}  O-O {[%clk 0:02:22]} 9. O-O {[%clk 0:02:38]}  Nc6 {[%clk 0:02:20]} 10. Rad1 {[%clk 0:02:36]}  a6 {[%clk 0:02:00]} 11. Rfe1 {[%clk 0:02:33]}  b5 {[%clk 0:01:56]} 12. a3 {[%clk 0:02:32]}  Bb7 {[%clk 0:01:51]} 13. h3 {[%clk 0:02:09]}  Rad8 {[%clk 0:01:44]} 14. Bf1 {[%clk 0:01:59]}  Qe7 {[%clk 0:01:37]} 15. Qe3 {[%clk 0:01:55]}  Rfe8 {[%clk 0:01:23]} 16. g3 {[%clk 0:01:51]}  e5 {[%clk 0:01:20]} 17. d5 {[%clk 0:01:44]}  Nd4 {[%clk 0:01:17]} 18. Rd2 {[%clk 0:01:34]}  h5 {[%clk 0:01:10]} 19. Bg2 {[%clk 0:01:31]}  Nxf3+ {[%clk 0:01:06]} 20. Bxf3 {[%clk 0:01:30]}  Kh7 {[%clk 0:01:03]} 21. Rde2 {[%clk 0:01:29]}  Bh6 {[%clk 0:00:55]} 22. Qd3 {[%clk 0:01:29]}  Bc8 {[%clk 0:00:54]} 23. Kh2 {[%clk 0:01:27]}  Qd7 {[%clk 0:00:47]} 24. Bg2 {[%clk 0:01:27]}  Qe7 {[%clk 0:00:26]} 25. b4 {[%clk 0:01:23]}  Qf6 {[%clk 0:00:17]} 26. a4 {[%clk 0:01:21]}  bxa4 {[%clk 0:00:13]} 27. Nxa4 {[%clk 0:01:22]}  Bd7 {[%clk 0:00:11]} 28. Nb2 {[%clk 0:01:21]}  Bb5 {[%clk 0:00:10]} 29. c4 {[%clk 0:01:21]}  Bd7 {[%clk 0:00:10]} 30. Nd1 {[%clk 0:01:22]}  h4 {[%clk 0:00:11]} 31. g4 {[%clk 0:01:21]}  Bf4+ {[%clk 0:00:11]} 32. Kg1 {[%clk 0:01:21]}  c6 {[%clk 0:00:10]} 33. Ne3 {[%clk 0:01:21]}  c5 {[%clk 0:00:07]} 34. bxc5 {[%clk 0:01:20]}  dxc5 {[%clk 0:00:07]} 35. Ra2 {[%clk 0:01:20]}  Ra8 {[%clk 0:00:05]} 36. Rea1 {[%clk 0:01:20]}  Qd6 {[%clk 0:00:04]} 37. Ra5 {[%clk 0:01:18]}  Reb8 {[%clk 0:00:04]} 38. Qa3 {[%clk 0:01:13]}  Rc8 {[%clk 0:00:03]} 39. Bf1 {[%clk 0:01:10]}  Qf6 {[%clk 0:00:01]} 40. Be2 {[%clk 0:01:06]}  Qg5 {[%clk 0:00:01]} 41. Kg2 {[%clk 0:01:05]}  Rab8 {[%clk 0:00:01]} 42. Rxa6 {[%clk 0:01:02]}  Rb4 {[%clk 0:00:02]} 43. Ra7 {[%clk 0:01:01]}  Be8 {[%clk 0:00:02]} 44. Qd3 {[%clk 0:01:00]}  Kg8 {[%clk 0:00:01]} 45. R7a3 {[%clk 0:00:58]}  Rd8 {[%clk 0:00:02]} 46. Rb3 {[%clk 0:00:58]}  Rd6 {[%clk 0:00:02]} 47. Rab1 {[%clk 0:00:58]}  Rdb6 {[%clk 0:00:02]} 48. Rxb4 {[%clk 0:00:58]}  cxb4 {[%clk 0:00:02]} 49. c5 {[%clk 0:00:58]}  Bb5 {[%clk 0:00:03]} 50. Qd2 {[%clk 0:00:55]}  Rb8 {[%clk 0:00:03]} 51. Bxb5 {[%clk 0:00:55]}  Rxb5 {[%clk 0:00:03]} 52. c6 {[%clk 0:00:55]}  Rc5 {[%clk 0:00:03]} 53. d6 {[%clk 0:00:54]}  Rxc6 {[%clk 0:00:01]} 54. d7 {[%clk 0:00:54]}  Kg7 {[%clk 0:00:01]} 55. d8=Q {[%clk 0:00:54]}  Rf6 {[%clk 0:00:02]} 56. Qe2 {[%clk 0:00:53]}  Qh6 {[%clk 0:00:01]} 57. Rd1 {[%clk 0:00:50]}  Re6 {[%clk 0:00:01]} 58. Nd5 {[%clk 0:00:49]}  Qg5 {[%clk 0:00:01]} 59. Qc7 {[%clk 0:00:49]} 1-0


[Site "https://www.chess.com"]

[Event "Titled Tuesday Blitz November 29 Late 2022"]
[White "Qashashvili, Alexandre"]
[Black "Sariego Figueredo, Wilfredo"]
[WhiteFideId "13600842"]
[BlackFideId "3500080"]
[WhiteElo "2405"]
[BlackElo "2309"]
[Result "1/2-1/2"]
[Round "11"]
[TimeControl "180+1"]
[Date "2022.11.30"]
[WhiteClock "0:00:20"]
[BlackClock "0:01:28"]

1. e4 {[%clk 0:03:00]}  c5 {[%clk 0:02:59]} 2. Nc3 {[%clk 0:03:01]}  a6 {[%clk 0:02:59]} 3. Nf3 {[%clk 0:03:02]}  b5 {[%clk 0:02:59]} 4. d3 {[%clk 0:03:02]}  e6 {[%clk 0:02:58]} 5. Be3 {[%clk 0:03:02]}  d5 {[%clk 0:02:53]} 6. exd5 {[%clk 0:03:03]}  exd5 {[%clk 0:02:54]} 7. d4 {[%clk 0:03:03]}  c4 {[%clk 0:02:51]} 8. Be2 {[%clk 0:03:02]}  Nf6 {[%clk 0:02:51]} 9. Ne5 {[%clk 0:03:02]}  Bb4 {[%clk 0:02:47]} 10. O-O {[%clk 0:03:02]}  Bxc3 {[%clk 0:02:46]} 11. bxc3 {[%clk 0:03:02]}  O-O {[%clk 0:02:46]} 12. a4 {[%clk 0:03:02]}  bxa4 {[%clk 0:02:34]} 13. Rxa4 {[%clk 0:03:00]}  Nbd7 {[%clk 0:02:34]} 14. Bf3 {[%clk 0:02:59]}  Nxe5 {[%clk 0:02:23]} 15. dxe5 {[%clk 0:02:59]}  Ne4 {[%clk 0:02:17]} 16. Bxe4 {[%clk 0:02:51]}  dxe4 {[%clk 0:02:17]} 17. Rxc4 {[%clk 0:02:47]}  Be6 {[%clk 0:02:14]} 18. Rxe4 {[%clk 0:02:38]}  Qxd1 {[%clk 0:02:13]} 19. Rxd1 {[%clk 0:02:38]}  Bf5 {[%clk 0:02:13]} 20. Rf4 {[%clk 0:02:24]}  Bxc2 {[%clk 0:02:12]} 21. Rd7 {[%clk 0:02:22]}  Rad8 {[%clk 0:02:09]} 22. Rxd8 {[%clk 0:02:19]}  Rxd8 {[%clk 0:02:10]} 23. Bd4 {[%clk 0:02:18]}  Rb8 {[%clk 0:02:07]} 24. h3 {[%clk 0:02:14]}  a5 {[%clk 0:02:04]} 25. Be3 {[%clk 0:02:08]}  a4 {[%clk 0:02:01]} 26. e6 {[%clk 0:01:58]}  fxe6 {[%clk 0:01:59]} 27. Bc5 {[%clk 0:01:03]}  Rc8 {[%clk 0:01:54]} 28. Bb4 {[%clk 0:01:00]}  g6 {[%clk 0:01:48]} 29. Rd4 {[%clk 0:00:53]}  Bb3 {[%clk 0:01:43]} 30. Rd7 {[%clk 0:00:50]}  Ra8 {[%clk 0:01:37]} 31. Ba3 {[%clk 0:00:47]}  Rc8 {[%clk 0:01:34]} 32. Bb4 {[%clk 0:00:44]}  Ra8 {[%clk 0:01:33]} 33. Ba3 {[%clk 0:00:41]}  Rc8 {[%clk 0:01:33]} 34. Bb2 {[%clk 0:00:31]}  Ra8 {[%clk 0:01:28]} 35. Ba3 {[%clk 0:00:20]} 1/2-1/2


[Site "https://www.chess.com"]

[Event "Titled Tuesday Blitz November 29 Late 2022"]
[White "Radovanovic, Dusan"]
[Black "Mohammed, Zozek Salah Mohammed"]
[WhiteFideId "926868"]
[BlackFideId "4803361"]
[WhiteElo "2341"]
[BlackElo "2199"]
[Result "1-0"]
[Round "11"]
[TimeControl "180+1"]
[Date "2022.11.30"]
[WhiteClock "0:01:46"]
[BlackClock "0:01:49"]

1. e4 {[%clk 0:03:00]}  c5 {[%clk 0:02:59]} 2. Nf3 {[%clk 0:03:01]}  d6 {[%clk 0:03:00]} 3. d4 {[%clk 0:03:01]}  cxd4 {[%clk 0:03:00]} 4. Nxd4 {[%clk 0:03:02]}  Nf6 {[%clk 0:03:00]} 5. Nc3 {[%clk 0:03:02]}  a6 {[%clk 0:03:00]} 6. Rg1 {[%clk 0:03:02]}  e5 {[%clk 0:02:59]} 7. Nb3 {[%clk 0:03:02]}  Be7 {[%clk 0:02:57]} 8. g4 {[%clk 0:03:03]}  h6 {[%clk 0:02:54]} 9. Be3 {[%clk 0:03:02]}  Be6 {[%clk 0:02:52]} 10. Qf3 {[%clk 0:03:01]}  Nc6 {[%clk 0:02:50]} 11. O-O-O {[%clk 0:03:00]}  Qc7 {[%clk 0:02:51]} 12. Kb1 {[%clk 0:03:00]}  b5 {[%clk 0:02:50]} 13. h4 {[%clk 0:02:58]}  b4 {[%clk 0:02:48]} 14. Nd5 {[%clk 0:02:57]}  Bxd5 {[%clk 0:02:34]} 15. exd5 {[%clk 0:02:56]}  Na5 {[%clk 0:02:32]} 16. g5 {[%clk 0:02:51]}  hxg5 {[%clk 0:02:30]} 17. hxg5 {[%clk 0:02:51]}  Nd7 {[%clk 0:02:30]} 18. g6 {[%clk 0:02:50]}  f6 {[%clk 0:02:30]} 19. Nxa5 {[%clk 0:02:32]}  Qxa5 {[%clk 0:02:29]} 20. Bc4 {[%clk 0:02:32]}  Nc5 {[%clk 0:02:09]} 21. Rh1 {[%clk 0:02:28]}  Kd7 {[%clk 0:02:06]} 22. Rh7 {[%clk 0:02:19]}  Rhg8 {[%clk 0:02:03]} 23. Bd3 {[%clk 0:02:11]}  Nxd3 {[%clk 0:01:57]} 24. Rxd3 {[%clk 0:02:01]}  Qb5 {[%clk 0:01:55]} 25. Qf5+ {[%clk 0:01:58]}  Kc7 {[%clk 0:01:54]} 26. Qe6 {[%clk 0:01:58]}  Qd7 {[%clk 0:01:54]} 27. Bb6+ {[%clk 0:01:49]}  Kc8 {[%clk 0:01:51]} 28. Qxg8+ {[%clk 0:01:49]}  Kb7 {[%clk 0:01:49]} 29. Qxg7 {[%clk 0:01:46]} 1-0


[Site "https://www.chess.com"]

[Event "Titled Tuesday Blitz November 29 Late 2022"]
[White "Reprintsev, Alexander"]
[Black "Manelyuk, Daniil"]
[WhiteFideId "14100541"]
[BlackFideId "44173920"]
[WhiteElo "2230"]
[BlackElo "2209"]
[Result "0-1"]
[Round "11"]
[TimeControl "180+1"]
[Date "2022.11.30"]
[WhiteClock "0:00:01"]
[BlackClock "0:00:02"]

1. e4 {[%clk 0:02:59]}  e6 {[%clk 0:02:59]} 2. d4 {[%clk 0:02:57]}  d5 {[%clk 0:02:59]} 3. Nc3 {[%clk 0:02:56]}  Bb4 {[%clk 0:02:59]} 4. Ne2 {[%clk 0:02:55]}  Nf6 {[%clk 0:02:54]} 5. e5 {[%clk 0:02:34]}  Nfd7 {[%clk 0:02:53]} 6. a3 {[%clk 0:02:32]}  Be7 {[%clk 0:02:52]} 7. f4 {[%clk 0:02:32]}  c5 {[%clk 0:02:52]} 8. Be3 {[%clk 0:02:31]}  Nc6 {[%clk 0:02:52]} 9. Qd2 {[%clk 0:02:28]}  Qb6 {[%clk 0:02:48]} 10. Na4 {[%clk 0:02:22]}  Qc7 {[%clk 0:02:03]} 11. dxc5 {[%clk 0:02:21]}  O-O {[%clk 0:02:01]} 12. b4 {[%clk 0:02:17]}  b6 {[%clk 0:01:50]} 13. cxb6 {[%clk 0:02:13]}  axb6 {[%clk 0:01:50]} 14. Nec3 {[%clk 0:01:59]}  Bb7 {[%clk 0:01:38]} 15. Bb5 {[%clk 0:01:40]}  Ndxe5 {[%clk 0:01:25]} 16. fxe5 {[%clk 0:01:38]}  Qxe5 {[%clk 0:01:26]} 17. O-O {[%clk 0:01:31]}  d4 {[%clk 0:01:25]} 18. Bxc6 {[%clk 0:01:09]}  dxe3 {[%clk 0:00:59]} 19. Qd7 {[%clk 0:01:03]}  Bd6 {[%clk 0:00:58]} 20. g3 {[%clk 0:00:52]}  e2 {[%clk 0:00:54]} 21. Rfe1 {[%clk 0:00:37]}  Bc8 {[%clk 0:00:06]} 22. Qxd6 {[%clk 0:00:21]}  Qxd6 {[%clk 0:00:05]} 23. Bxa8 {[%clk 0:00:22]}  b5 {[%clk 0:00:05]} 24. Nxb5 {[%clk 0:00:19]}  Qa6 {[%clk 0:00:05]} 25. Bf3 {[%clk 0:00:08]}  Qxb5 {[%clk 0:00:05]} 26. Nc3 {[%clk 0:00:07]}  Qc4 {[%clk 0:00:05]} 27. Nxe2 {[%clk 0:00:07]}  Qxc2 {[%clk 0:00:05]} 28. Rac1 {[%clk 0:00:06]}  Qb3 {[%clk 0:00:05]} 29. Rc3 {[%clk 0:00:06]}  Qa4 {[%clk 0:00:05]} 30. Rec1 {[%clk 0:00:06]}  Ba6 {[%clk 0:00:06]} 31. Nd4 {[%clk 0:00:05]}  e5 {[%clk 0:00:05]} 32. Nc6 {[%clk 0:00:03]}  f6 {[%clk 0:00:02]} 33. Bd5+ {[%clk 0:00:03]}  Kh8 {[%clk 0:00:02]} 34. Ne7 {[%clk 0:00:02]}  Qb5 {[%clk 0:00:02]} 35. Rc5 {[%clk 0:00:01]}  Qb6 {[%clk 0:00:02]} 0-1


[Site "https://www.chess.com"]

[Event "Titled Tuesday Blitz November 29 Late 2022"]
[White "Sadhwani, Raunak"]
[Black "Shimanov, Aleksandr"]
[WhiteFideId "35093487"]
[BlackFideId "4198603"]
[WhiteElo "2656"]
[BlackElo "2605"]
[Result "1-0"]
[Round "11"]
[TimeControl "180+1"]
[Date "2022.11.30"]
[WhiteClock "0:00:12"]
[BlackClock "0:00:01"]

1. c4 {[%clk 0:03:00]}  e6 {[%clk 0:02:59]} 2. Nc3 {[%clk 0:02:57]}  d5 {[%clk 0:02:54]} 3. d4 {[%clk 0:02:57]}  Nf6 {[%clk 0:02:52]} 4. cxd5 {[%clk 0:02:56]}  exd5 {[%clk 0:02:53]} 5. Bg5 {[%clk 0:02:56]}  c6 {[%clk 0:02:53]} 6. e3 {[%clk 0:02:56]}  h6 {[%clk 0:02:53]} 7. Bh4 {[%clk 0:02:55]}  Bf5 {[%clk 0:02:53]} 8. Qf3 {[%clk 0:02:54]}  Be6 {[%clk 0:02:54]} 9. Bxf6 {[%clk 0:02:54]}  Qxf6 {[%clk 0:02:55]} 10. Qxf6 {[%clk 0:02:54]}  gxf6 {[%clk 0:02:55]} 11. Bd3 {[%clk 0:02:54]}  a5 {[%clk 0:02:56]} 12. Nf3 {[%clk 0:02:47]}  a4 {[%clk 0:02:55]} 13. a3 {[%clk 0:02:46]}  Nd7 {[%clk 0:02:54]} 14. Kd2 {[%clk 0:02:47]}  b5 {[%clk 0:02:53]} 15. Nh4 {[%clk 0:02:37]}  Nb6 {[%clk 0:02:52]} 16. Kc2 {[%clk 0:02:37]}  Kd7 {[%clk 0:02:45]} 17. Ne2 {[%clk 0:02:34]}  Nc4 {[%clk 0:02:38]} 18. Nf4 {[%clk 0:02:30]}  Bd6 {[%clk 0:02:37]} 19. g3 {[%clk 0:02:29]}  Rhb8 {[%clk 0:02:26]} 20. Rhc1 {[%clk 0:02:17]}  Na5 {[%clk 0:02:16]} 21. Rd1 {[%clk 0:02:13]}  b4 {[%clk 0:02:13]} 22. axb4 {[%clk 0:02:12]}  Rxb4 {[%clk 0:02:14]} 23. Ra2 {[%clk 0:02:02]}  Rab8 {[%clk 0:01:30]} 24. Ne2 {[%clk 0:02:02]}  Nc4 {[%clk 0:01:18]} 25. Rb1 {[%clk 0:01:50]}  Nb6 {[%clk 0:00:47]} 26. Nc3 {[%clk 0:01:49]}  c5 {[%clk 0:00:41]} 27. Rd1 {[%clk 0:01:33]}  cxd4 {[%clk 0:00:39]} 28. exd4 {[%clk 0:01:34]}  Nc4 {[%clk 0:00:36]} 29. Bxc4 {[%clk 0:01:33]}  dxc4 {[%clk 0:00:33]} 30. d5 {[%clk 0:01:17]}  Bg4 {[%clk 0:00:32]} 31. f3 {[%clk 0:01:18]}  Bh3 {[%clk 0:00:23]} 32. Nxa4 {[%clk 0:01:18]}  Be5 {[%clk 0:00:14]} 33. Nc5+ {[%clk 0:01:09]}  Kd6 {[%clk 0:00:12]} 34. Ne4+ {[%clk 0:01:09]}  Ke7 {[%clk 0:00:12]} 35. Nc3 {[%clk 0:01:05]}  Rb3 {[%clk 0:00:10]} 36. f4 {[%clk 0:00:45]}  Bd6 {[%clk 0:00:06]} 37. Ne4 {[%clk 0:00:44]}  Bb4 {[%clk 0:00:05]} 38. d6+ {[%clk 0:00:33]}  Kf8 {[%clk 0:00:05]} 39. f5 {[%clk 0:00:21]}  Re3 {[%clk 0:00:04]} 40. Nxf6 {[%clk 0:00:19]}  Re2+ {[%clk 0:00:04]} 41. Kb1 {[%clk 0:00:20]}  c3 {[%clk 0:00:04]} 42. Nd7+ {[%clk 0:00:14]}  Kg7 {[%clk 0:00:03]} 43. bxc3 {[%clk 0:00:12]}  Rb2+ {[%clk 0:00:01]} 44. Rxb2 {[%clk 0:00:12]} 1-0


[Site "https://www.chess.com"]